[Event "Live Chess"]
[Site "Chess.com"]
[Date "2023.05.20"]
[Round "-"]
[White "WelshTiger"]
[Black "toog"]
[Result "1/2-1/2"]
[WhiteElo "2399"]
[BlackElo "2612"]
[TimeControl "300"]
[EndTime "13:40:29 PDT"]
[Termination "Game drawn - insufficient material"]

1. e4 {[%clk 0:04:54.8]} 1... e5 {[%clk 0:04:56.2]} 2. Nf3 {[%clk 0:04:53.8]}
2... d6 {[%clk 0:04:54.2]} 3. d4 {[%clk 0:04:53]} 3... exd4 {[%clk 0:04:52.6]}
4. Nxd4 {[%clk 0:04:50.2]} 4... Nf6 {[%clk 0:04:52.5]} 5. Nc3 {[%clk 0:04:49.1]}
5... Be7 {[%clk 0:04:51.3]} 6. g3 {[%clk 0:04:46.8]} 6... O-O {[%clk 0:04:49.6]}
7. Bg2 {[%clk 0:04:46]} 7... Re8 {[%clk 0:04:48.9]} 8. O-O {[%clk 0:04:44.9]}
8... Bf8 {[%clk 0:04:46.9]} 9. h3 {[%clk 0:04:43.9]} 9... Nc6 {[%clk 0:04:45.1]}
10. Re1 {[%clk 0:04:43]} 10... Bd7 {[%clk 0:04:43.5]} 11. Be3 {[%clk 0:04:38.2]}
11... Nxd4 {[%clk 0:04:41.6]} 12. Bxd4 {[%clk 0:04:37.1]} 12... Bc6 {[%clk
0:04:41.2]} 13. Qd2 {[%clk 0:04:33.4]} 13... g6 {[%clk 0:04:36.8]} 14. Rad1
{[%clk 0:04:31]} 14... Bg7 {[%clk 0:04:35.4]} 15. Nd5 {[%clk 0:04:27.5]} 15...
Bxd5 {[%clk 0:04:33.4]} 16. exd5 {[%clk 0:04:26.8]} 16... Nd7 {[%clk 0:04:30.7]}
17. c4 {[%clk 0:04:09]} 17... Bxd4 {[%clk 0:04:27.5]} 18. Qxd4 {[%clk
0:04:08.2]} 18... Qf6 {[%clk 0:04:26.2]} 19. Qxf6 {[%clk 0:04:03.2]} 19... Nxf6
{[%clk 0:04:26.1]} 20. f4 {[%clk 0:03:58.5]} 20... a5 {[%clk 0:04:22.4]} 21. Kf2
{[%clk 0:03:57]} 21... a4 {[%clk 0:04:18.2]} 22. Rxe8+ {[%clk 0:03:55.7]} 22...
Rxe8 {[%clk 0:04:16.5]} 23. Re1 {[%clk 0:03:55.6]} 23... Kf8 {[%clk 0:04:15.8]}
24. Rxe8+ {[%clk 0:03:53.8]} 24... Kxe8 {[%clk 0:04:15.7]} 25. Ke3 {[%clk
0:03:53.1]} 25... Nd7 {[%clk 0:04:14.6]} 26. Kd4 {[%clk 0:03:51.9]} 26... Nc5
{[%clk 0:04:13.9]} 27. Bf3 {[%clk 0:03:48.5]} 27... Ke7 {[%clk 0:04:12.5]} 28.
Bd1 {[%clk 0:03:47.5]} 28... Kf6 {[%clk 0:04:11.6]} 29. b4 {[%clk 0:03:45.2]}
29... axb3 {[%clk 0:04:11.5]} 30. axb3 {[%clk 0:03:44.6]} 30... Na6 {[%clk
0:04:02]} 31. Bc2 {[%clk 0:03:42.6]} 31... Nb4 {[%clk 0:04:00.4]} 32. Bb1 {[%clk
0:03:41.9]} 32... b6 {[%clk 0:03:41.8]} 33. g4 {[%clk 0:03:40]} 33... h6 {[%clk
0:03:39.8]} 34. h4 {[%clk 0:03:39]} 34... g5 {[%clk 0:03:39]} 35. fxg5+ {[%clk
0:03:36.4]} 35... hxg5 {[%clk 0:03:38.9]} 36. h5 {[%clk 0:03:36]} 36... Kg7
{[%clk 0:03:31.8]} 37. Bf5 {[%clk 0:03:33.9]} 37... Na6 {[%clk 0:03:29.8]} 38.
Bc8 {[%clk 0:03:29.5]} 38... Nc5 {[%clk 0:03:27.8]} 39. b4 {[%clk 0:03:28.6]}
39... Nb3+ {[%clk 0:03:23.2]} 40. Kc3 {[%clk 0:03:27.2]} 40... Nc1 {[%clk
0:03:20.5]} 41. Kd2 {[%clk 0:03:24.5]} 41... Nb3+ {[%clk 0:03:17.7]} 42. Ke3
{[%clk 0:03:23.5]} 42... Nc1 {[%clk 0:03:05.9]} 43. Bf5 {[%clk 0:03:21.6]} 43...
Na2 {[%clk 0:03:03.7]} 44. b5 {[%clk 0:03:16.1]} 44... Nc3 {[%clk 0:03:00.2]}
45. Bd3 {[%clk 0:03:05]} 45... Na4 {[%clk 0:02:56.5]} 46. Kd4 {[%clk 0:03:04.2]}
46... Nc5 {[%clk 0:02:54.6]} 47. Bf5 {[%clk 0:03:03.8]} 47... Kh6 {[%clk
0:02:37.2]} 48. Bc8 {[%clk 0:03:01.6]} 48... Nb3+ {[%clk 0:02:13.5]} 49. Kc3
{[%clk 0:03:00.1]} 49... Nc5 {[%clk 0:02:12.8]} 50. Kd4 {[%clk 0:02:59.5]} 50...
Kg7 {[%clk 0:02:09.4]} 51. Bf5 {[%clk 0:02:57.6]} 51... Nb7 {[%clk 0:02:00.3]}
52. Bc8 {[%clk 0:02:54.5]} 52... Nd8 {[%clk 0:01:59.4]} 53. Ke4 {[%clk
0:02:49.6]} 53... f6 {[%clk 0:01:56.6]} 54. Be6 {[%clk 0:02:39.3]} 54... Nb7
{[%clk 0:01:53.2]} 55. Kf5 {[%clk 0:02:37.3]} 55... Na5 {[%clk 0:01:50.4]} 56.
h6+ {[%clk 0:02:35.8]} 56... Kxh6 {[%clk 0:01:49.2]} 57. Kxf6 {[%clk 0:02:35.7]}
57... Nxc4 {[%clk 0:01:48.6]} 58. Ke7 {[%clk 0:02:34.2]} 58... Na3 {[%clk
0:01:29.1]} 59. Bd7 {[%clk 0:02:32.6]} 59... Kg6 {[%clk 0:01:28.1]} 60. Kd8
{[%clk 0:02:30.1]} 60... Kf6 {[%clk 0:01:27.4]} 61. Kxc7 {[%clk 0:02:29.1]}
61... Nc4 {[%clk 0:01:26.5]} 62. Bf5 {[%clk 0:02:27.8]} 62... Ke5 {[%clk
0:01:25.6]} 63. Kc6 {[%clk 0:02:25.7]} 63... Kd4 {[%clk 0:01:21.3]} 64. Bg6
{[%clk 0:02:19.1]} 64... Kc3 {[%clk 0:01:20]} 65. Bf5 {[%clk 0:02:15.7]} 65...
Kd4 {[%clk 0:01:19.1]} 66. Bg6 {[%clk 0:02:14.2]} 66... Kc3 {[%clk 0:01:18.4]}
67. Be4 {[%clk 0:02:09.7]} 67... Kd4 {[%clk 0:01:15.5]} 68. Bg2 {[%clk
0:02:08.8]} 68... Kc3 {[%clk 0:01:09.9]} 69. Bf1 {[%clk 0:02:07]} 69... Ne3
{[%clk 0:01:09.2]} 70. Be2 {[%clk 0:01:52.7]} 70... Kd2 {[%clk 0:01:07.5]} 71.
Bf3 {[%clk 0:01:50.7]} 71... Nc4 {[%clk 0:01:05]} 72. Be4 {[%clk 0:01:48.6]}
72... Kc3 {[%clk 0:01:03.6]} 73. Bg2 {[%clk 0:01:46]} 73... Kd4 {[%clk
0:00:57.7]} 74. Bf1 {[%clk 0:01:43.2]} 74... Nd2 {[%clk 0:00:57.1]} 75. Be2
{[%clk 0:01:41.3]} 75... Ke3 {[%clk 0:00:56]} 76. Bd1 {[%clk 0:01:38.4]} 76...
Nc4 {[%clk 0:00:54.1]} 77. Bb3 {[%clk 0:01:37.2]} 77... Na5+ {[%clk 0:00:53.5]}
78. Kxb6 {[%clk 0:01:35.2]} 78... Nxb3 {[%clk 0:00:53.4]} 79. Kc6 {[%clk
0:01:33.9]} 79... Kd4 {[%clk 0:00:46.9]} 80. Kxd6 {[%clk 0:01:33.4]} 80... Na5
{[%clk 0:00:45.3]} 81. b6 {[%clk 0:01:31.4]} 81... Kc4 {[%clk 0:00:41.1]} 82.
Ke6 {[%clk 0:01:22.7]} 82... Kc5 {[%clk 0:00:40.2]} 83. d6 {[%clk 0:01:20.9]}
83... Kxb6 {[%clk 0:00:31.3]} 84. d7 {[%clk 0:01:20.4]} 84... Nc6 {[%clk
0:00:27.9]} 85. Kd6 {[%clk 0:01:19.6]} 85... Nd8 {[%clk 0:00:25.3]} 86. Ke7
{[%clk 0:01:18.9]} 86... Kc7 {[%clk 0:00:23.9]} 87. Kf6 {[%clk 0:01:17.6]} 87...
Kxd7 {[%clk 0:00:22.6]} 88. Kxg5 {[%clk 0:01:17.3]} 88... Ke7 {[%clk 0:00:22.2]}
89. Kf5 {[%clk 0:01:16.6]} 89... Nf7 {[%clk 0:00:21.6]} 90. Kg6 {[%clk
0:01:16.5]} 90... Ne5+ {[%clk 0:00:19.9]} 91. Kf5 {[%clk 0:01:16.1]} 91... Nxg4
{[%clk 0:00:19.8]} 1/2-1/2

[Event "Live Chess"]
[Site "Chess.com"]
[Date "2023.05.20"]
[Round "-"]
[White "GEMdzq"]
[Black "Leonid_Starozhilov"]
[Result "0-1"]
[WhiteElo "2225"]
[BlackElo "2643"]
[TimeControl "300"]
[EndTime "13:40:40 PDT"]
[Termination "Leonid_Starozhilov won by resignation"]

1. e4 {[%clk 0:04:57.2]} 1... Nf6 {[%clk 0:04:58.4]} 2. e5 {[%clk 0:04:51.8]}
2... Ng8 {[%clk 0:04:57.5]} 3. d4 {[%clk 0:04:50.2]} 3... d5 {[%clk 0:04:56.8]}
4. exd6 {[%clk 0:04:45]} 4... cxd6 {[%clk 0:04:55.4]} 5. Nf3 {[%clk 0:04:44.2]}
5... Nf6 {[%clk 0:04:54.4]} 6. Bc4 {[%clk 0:04:43.1]} 6... g6 {[%clk 0:04:53.2]}
7. Ng5 {[%clk 0:04:40.1]} 7... d5 {[%clk 0:04:51.6]} 8. Be2 {[%clk 0:04:33.7]}
8... Bg7 {[%clk 0:04:49.6]} 9. O-O {[%clk 0:04:32.5]} 9... Nc6 {[%clk
0:04:48.9]} 10. Be3 {[%clk 0:04:24.6]} 10... O-O {[%clk 0:04:48.5]} 11. h3
{[%clk 0:04:23.4]} 11... h6 {[%clk 0:04:44.9]} 12. Nf3 {[%clk 0:04:22.3]} 12...
Ne4 {[%clk 0:04:44.5]} 13. Nbd2 {[%clk 0:04:19.1]} 13... f5 {[%clk 0:04:43.6]}
14. c3 {[%clk 0:04:13.4]} 14... f4 {[%clk 0:04:42.4]} 15. Nxe4 {[%clk
0:04:06.7]} 15... dxe4 {[%clk 0:04:41.7]} 16. Bc4+ {[%clk 0:04:05.5]} 16... Kh8
{[%clk 0:04:38.3]} 17. Nh4 {[%clk 0:04:04.4]} 17... Qe8 {[%clk 0:04:26.9]} 18.
Bxf4 {[%clk 0:03:46.7]} 18... Rxf4 {[%clk 0:04:23.8]} 19. g3 {[%clk 0:03:46]}
19... Rxh4 {[%clk 0:04:21.5]} 20. gxh4 {[%clk 0:03:44.8]} 20... Bxh3 {[%clk
0:04:20.7]} 21. Re1 {[%clk 0:03:42.4]} 21... Bf5 {[%clk 0:04:19.6]} 22. Bd5
{[%clk 0:03:34]} 22... Qd7 {[%clk 0:04:06.9]} 23. Bxe4 {[%clk 0:03:31.7]} 23...
Rf8 {[%clk 0:04:06.5]} 24. Qd3 {[%clk 0:03:22.2]} 24... Ne5 {[%clk 0:03:55.6]}
25. dxe5 {[%clk 0:03:16.1]} 25... Qxd3 {[%clk 0:03:54.2]} 26. Bxd3 {[%clk
0:03:16]} 26... Bxd3 {[%clk 0:03:53.7]} 27. Rad1 {[%clk 0:03:15.3]} 27... Bb5
{[%clk 0:03:48.1]} 28. Rd4 {[%clk 0:02:50.1]} 28... Rf5 {[%clk 0:03:34.2]} 29.
f4 {[%clk 0:02:46.8]} 29... g5 {[%clk 0:03:33.1]} 30. hxg5 {[%clk 0:02:45.4]}
30... hxg5 {[%clk 0:03:32.1]} 31. Rd8+ {[%clk 0:02:11.3]} 31... Kh7 {[%clk
0:03:30.7]} 32. fxg5 {[%clk 0:01:46.1]} 32... Rxg5+ {[%clk 0:03:29.3]} 33. Kf2
{[%clk 0:01:42.5]} 33... Bxe5 {[%clk 0:03:23.6]} 34. Rh1+ {[%clk 0:01:40.8]}
34... Kg7 {[%clk 0:03:22.2]} 35. Rhh8 {[%clk 0:01:35.6]} 35... Bc4 {[%clk
0:03:12.2]} 36. b3 {[%clk 0:01:34.6]} 36... Be6 {[%clk 0:03:02.5]} 37. c4 {[%clk
0:01:23.4]} 37... Bf6 {[%clk 0:02:51.4]} 38. Rh2 {[%clk 0:01:11.6]} 38... Kf7
{[%clk 0:02:34]} 39. Rg2 {[%clk 0:01:00.5]} 39... Rf5+ {[%clk 0:02:22.8]} 40.
Ke3 {[%clk 0:00:57.8]} 40... Bg5+ {[%clk 0:02:16.5]} 41. Ke2 {[%clk 0:00:51]}
41... Kf6 {[%clk 0:02:12.8]} 42. Rf2 {[%clk 0:00:49.7]} 42... Rxf2+ {[%clk
0:02:10.6]} 43. Kxf2 {[%clk 0:00:49.6]} 43... Bf5 {[%clk 0:02:00.5]} 44. Kf3
{[%clk 0:00:44.9]} 44... e5 {[%clk 0:01:59.2]} 45. Rd6+ {[%clk 0:00:43.5]} 45...
Ke7 {[%clk 0:01:58.1]} 46. Rd5 {[%clk 0:00:39.1]} 46... e4+ {[%clk 0:01:57.3]}
47. Kf2 {[%clk 0:00:36.4]} 47... Ke6 {[%clk 0:01:54.6]} 48. Rb5 {[%clk
0:00:35.4]} 48... b6 {[%clk 0:01:47.4]} 49. a4 {[%clk 0:00:28.3]} 49... e3+
{[%clk 0:01:46.4]} 50. Kf3 {[%clk 0:00:27.1]} 50... Bg4+ {[%clk 0:01:43.2]} 51.
Kxg4 {[%clk 0:00:18.8]} 51... e2 {[%clk 0:01:43.1]} 52. Kxg5 {[%clk 0:00:17.7]}
52... e1=Q {[%clk 0:01:42.1]} 53. Kg4 {[%clk 0:00:14.3]} 53... Qe3 {[%clk
0:01:40.6]} 54. Kh5 {[%clk 0:00:12.8]} 54... a6 {[%clk 0:01:38.4]} 0-1

[Event "Live Chess"]
[Site "Chess.com"]
[Date "2023.05.20"]
[Round "-"]
[White "Jo1ts"]
[Black "LL220284LL"]
[Result "0-1"]
[WhiteElo "720"]
[BlackElo "2392"]
[TimeControl "300"]
[EndTime "13:40:49 PDT"]
[Termination "LL220284LL won by checkmate"]

1. d4 {[%clk 0:04:58.6]} 1... g6 {[%clk 0:04:57.8]} 2. Bf4 {[%clk 0:04:56.9]}
2... Bg7 {[%clk 0:04:57.7]} 3. e3 {[%clk 0:04:55.2]} 3... d6 {[%clk 0:04:57.3]}
4. Nf3 {[%clk 0:04:54.5]} 4... Nd7 {[%clk 0:04:57.2]} 5. Bd3 {[%clk 0:04:52.2]}
5... e5 {[%clk 0:04:57.1]} 6. Bg3 {[%clk 0:04:46.8]} 6... Qe7 {[%clk 0:04:53.7]}
7. Be2 {[%clk 0:04:42.4]} 7... Ngf6 {[%clk 0:04:52.3]} 8. c3 {[%clk 0:04:39.4]}
8... O-O {[%clk 0:04:50.7]} 9. Nbd2 {[%clk 0:04:32.8]} 9... e4 {[%clk
0:04:49.7]} 10. Ng5 {[%clk 0:04:29]} 10... h6 {[%clk 0:04:47.7]} 11. Nh3 {[%clk
0:04:22]} 11... g5 {[%clk 0:04:44.7]} 12. Qc2 {[%clk 0:04:12.6]} 12... Nb6
{[%clk 0:04:41.8]} 13. f3 {[%clk 0:04:11.2]} 13... Bxh3 {[%clk 0:04:38]} 14.
gxh3 {[%clk 0:04:05.4]} 14... exf3 {[%clk 0:04:37.9]} 15. Nxf3 {[%clk
0:03:56.2]} 15... Qxe3 {[%clk 0:04:36.6]} 16. h4 {[%clk 0:03:49]} 16... Ne4
{[%clk 0:04:34.3]} 17. hxg5 {[%clk 0:03:38.5]} 17... Rae8 {[%clk 0:04:27.3]} 18.
gxh6 {[%clk 0:03:35.6]} 18... Bxh6 {[%clk 0:04:24.3]} 19. Ng1 {[%clk 0:03:19.6]}
19... Nc4 {[%clk 0:04:18.3]} 20. Rd1 {[%clk 0:02:58.2]} 20... Nxg3 {[%clk
0:04:13.9]} 21. hxg3 {[%clk 0:02:53.3]} 21... Qxg3+ {[%clk 0:04:13.8]} 22. Kf1
{[%clk 0:02:44.7]} 22... Ne3# {[%clk 0:04:12.7]} 0-1

[Event "Live Chess"]
[Site "Chess.com"]
[Date "2023.05.20"]
[Round "-"]
[White "kevinmilleruk"]
[Black "stevefairhurst"]
[Result "1-0"]
[WhiteElo "1151"]
[BlackElo "585"]
[TimeControl "300"]
[EndTime "13:41:03 PDT"]
[Termination "kevinmilleruk won by checkmate"]

1. c4 {[%clk 0:04:59.4]} 1... e5 {[%clk 0:04:58]} 2. Nc3 {[%clk 0:04:58.2]} 2...
Nf6 {[%clk 0:04:56]} 3. g3 {[%clk 0:04:57.6]} 3... d6 {[%clk 0:04:54.3]} 4. Bg2
{[%clk 0:04:56.9]} 4... Bg4 {[%clk 0:04:51.7]} 5. d3 {[%clk 0:04:56.2]} 5... Nc6
{[%clk 0:04:48.2]} 6. Bg5 {[%clk 0:04:54.3]} 6... Nd4 {[%clk 0:04:42.7]} 7. Nf3
{[%clk 0:04:48.8]} 7... Nxf3+ {[%clk 0:04:39.1]} 8. exf3 {[%clk 0:04:47]} 8...
Bh5 {[%clk 0:04:36.3]} 9. Nd5 {[%clk 0:04:43.9]} 9... Nxd5 {[%clk 0:04:34.7]}
10. Bxd8 {[%clk 0:04:41.8]} 10... Kxd8 {[%clk 0:04:33.7]} 11. cxd5 {[%clk
0:04:40.6]} 11... Be7 {[%clk 0:04:33.3]} 12. O-O {[%clk 0:04:35.6]} 12... Re8
{[%clk 0:04:33.2]} 13. Qb3 {[%clk 0:04:33]} 13... a5 {[%clk 0:04:32.3]} 14. Qxb7
{[%clk 0:04:31.4]} 14... Kd7 {[%clk 0:04:30.2]} 15. Qc6+ {[%clk 0:04:29.5]}
15... Kc8 {[%clk 0:04:28.5]} 16. Qxe8+ {[%clk 0:04:26.7]} 16... Kb7 {[%clk
0:04:22.8]} 17. Qc6+ {[%clk 0:04:25.2]} 17... Kb8 {[%clk 0:04:20.5]} 18. g4
{[%clk 0:04:22.1]} 18... Bg6 {[%clk 0:04:18.3]} 19. Rac1 {[%clk 0:04:19.6]}
19... Bxd3 {[%clk 0:04:16.2]} 20. Qxc7# {[%clk 0:04:17.8]} 1-0

[Event "Live Chess"]
[Site "Chess.com"]
[Date "2023.05.20"]
[Round "-"]
[White "WilliamofOrange16th"]
[Black "MarkLim1"]
[Result "0-1"]
[WhiteElo "1842"]
[BlackElo "1654"]
[TimeControl "300"]
[EndTime "13:41:07 PDT"]
[Termination "MarkLim1 won by resignation"]

1. e4 {[%clk 0:04:59.1]} 1... e6 {[%clk 0:04:58.6]} 2. f4 {[%clk 0:04:55.9]}
2... d5 {[%clk 0:04:57.7]} 3. e5 {[%clk 0:04:55.5]} 3... c5 {[%clk 0:04:56.8]}
4. Nf3 {[%clk 0:04:55.1]} 4... Nc6 {[%clk 0:04:56.2]} 5. c3 {[%clk 0:04:54.8]}
5... f6 {[%clk 0:04:52.5]} 6. Na3 {[%clk 0:04:44.1]} 6... Bd7 {[%clk 0:04:51.6]}
7. d4 {[%clk 0:04:39]} 7... cxd4 {[%clk 0:04:50.3]} 8. cxd4 {[%clk 0:04:37.3]}
8... Qb6 {[%clk 0:04:46.7]} 9. Nc2 {[%clk 0:04:35]} 9... Be7 {[%clk 0:04:44.5]}
10. Be2 {[%clk 0:04:28.4]} 10... Nh6 {[%clk 0:04:42.8]} 11. O-O {[%clk
0:04:26.8]} 11... Nf5 {[%clk 0:04:38.8]} 12. Kh1 {[%clk 0:04:25]} 12... fxe5
{[%clk 0:04:37.2]} 13. fxe5 {[%clk 0:04:22.6]} 13... O-O {[%clk 0:04:36.1]} 14.
b3 {[%clk 0:04:14.5]} 14... Rac8 {[%clk 0:04:32.3]} 15. g4 {[%clk 0:04:10.9]}
15... Nh4 {[%clk 0:04:30.8]} 16. Nxh4 {[%clk 0:03:40.7]} 16... Bxh4 {[%clk
0:04:28.8]} 17. Be3 {[%clk 0:03:39.5]} 17... Be7 {[%clk 0:04:25.4]} 18. Bd3
{[%clk 0:03:35.7]} 18... Nb4 {[%clk 0:04:23.1]} 19. Nxb4 {[%clk 0:03:34.1]}
19... Qxb4 {[%clk 0:04:20.8]} 20. Qe2 {[%clk 0:03:22.4]} 20... Rc7 {[%clk
0:04:11.7]} 21. Rxf8+ {[%clk 0:03:19.6]} 21... Bxf8 {[%clk 0:04:10.7]} 22. Rf1
{[%clk 0:03:14.4]} 22... Be8 {[%clk 0:04:08.7]} 23. Bb1 {[%clk 0:03:01.3]} 23...
Rf7 {[%clk 0:03:59.4]} 24. Rxf7 {[%clk 0:02:35.7]} 24... Bxf7 {[%clk 0:03:56.8]}
25. Qf2 {[%clk 0:02:34.6]} 25... Qc3 {[%clk 0:03:52.6]} 26. Kg2 {[%clk
0:02:06.9]} 26... Bg6 {[%clk 0:03:44.2]} 27. Bxg6 {[%clk 0:02:01.6]} 27... hxg6
{[%clk 0:03:42.6]} 28. h3 {[%clk 0:01:52.6]} 28... Qd3 {[%clk 0:03:36.5]} 29.
Kg3 {[%clk 0:01:36.6]} 29... Bb4 {[%clk 0:03:30.6]} 30. h4 {[%clk 0:01:26.7]}
30... Bc3 {[%clk 0:03:21.9]} 31. Kh2 {[%clk 0:01:22.8]} 31... Qe4 {[%clk
0:03:16.8]} 32. Kh3 {[%clk 0:01:18.5]} 32... a6 {[%clk 0:03:00.7]} 33. a4 {[%clk
0:01:16.7]} 33... Qb1 {[%clk 0:02:53.6]} 34. Bd2 {[%clk 0:01:09.9]} 34... Qxb3
{[%clk 0:02:47.8]} 35. Qe3 {[%clk 0:01:04.1]} 35... Qxa4 {[%clk 0:02:35.3]} 36.
Qxc3 {[%clk 0:01:02.6]} 36... Qb5 {[%clk 0:02:33.2]} 37. Qf3 {[%clk 0:00:54.3]}
37... Qc4 {[%clk 0:02:26.4]} 38. Be3 {[%clk 0:00:48]} 38... b5 {[%clk
0:02:24.5]} 39. g5 {[%clk 0:00:46.3]} 39... b4 {[%clk 0:02:20.2]} 40. Qg4 {[%clk
0:00:45.6]} 40... Qc6 {[%clk 0:02:18.2]} 41. Qd1 {[%clk 0:00:42]} 41... a5
{[%clk 0:02:14.7]} 42. Bd2 {[%clk 0:00:36.4]} 42... Qc4 {[%clk 0:02:08.1]} 43.
Be1 {[%clk 0:00:31.8]} 43... a4 {[%clk 0:01:59.3]} 44. Qxa4 {[%clk 0:00:28.4]}
44... Qf1+ {[%clk 0:01:57]} 45. Kg4 {[%clk 0:00:26.5]} 45... Qxe1 {[%clk
0:01:56.1]} 46. Qe8+ {[%clk 0:00:25.3]} 46... Kh7 {[%clk 0:01:55]} 47. Qxe6
{[%clk 0:00:24.4]} 47... Qe4+ {[%clk 0:01:53.7]} 48. Kg3 {[%clk 0:00:22.1]}
48... b3 {[%clk 0:01:44.9]} 49. Qb6 {[%clk 0:00:19.7]} 49... Qe3+ {[%clk
0:01:40.1]} 50. Kg4 {[%clk 0:00:18.7]} 50... Qe2+ {[%clk 0:01:38]} 51. Kf4
{[%clk 0:00:16.4]} 51... b2 {[%clk 0:01:36.6]} 52. h5 {[%clk 0:00:16.2]} 52...
gxh5 {[%clk 0:01:26.9]} 53. g6+ {[%clk 0:00:14]} 53... Kh6 {[%clk 0:01:21.9]}
54. e6 {[%clk 0:00:13.4]} 54... Qf1+ {[%clk 0:01:19.1]} 55. Ke3 {[%clk
0:00:12.5]} 55... b1=Q {[%clk 0:01:17.5]} 56. e7 {[%clk 0:00:10.3]} 56... Qxb6
{[%clk 0:01:11.3]} 0-1

[Event "Live Chess"]
[Site "Chess.com"]
[Date "2023.05.20"]
[Round "-"]
[White "hturner40"]
[Black "chessfiction"]
[Result "1-0"]
[WhiteElo "1787"]
[BlackElo "2404"]
[TimeControl "300"]
[EndTime "13:41:14 PDT"]
[Termination "hturner40 won by resignation"]

1. Nf3 {[%clk 0:04:56]} 1... e6 {[%clk 0:04:59.9]} 2. g3 {[%clk 0:04:54.8]} 2...
Nf6 {[%clk 0:04:58]} 3. Bg2 {[%clk 0:04:53.7]} 3... d5 {[%clk 0:04:57.9]} 4. O-O
{[%clk 0:04:52.6]} 4... Bd6 {[%clk 0:04:57.8]} 5. d3 {[%clk 0:04:50.4]} 5... O-O
{[%clk 0:04:57.7]} 6. Nc3 {[%clk 0:04:47.7]} 6... c5 {[%clk 0:04:57.6]} 7. e4
{[%clk 0:04:42.6]} 7... dxe4 {[%clk 0:04:55.4]} 8. dxe4 {[%clk 0:04:41.3]} 8...
Nc6 {[%clk 0:04:52.8]} 9. Nb5 {[%clk 0:04:33.2]} 9... Be7 {[%clk 0:04:45.7]} 10.
Bf4 {[%clk 0:04:30.9]} 10... Qb6 {[%clk 0:04:41.7]} 11. Nc7 {[%clk 0:04:23.8]}
11... Rb8 {[%clk 0:04:40.1]} 12. a4 {[%clk 0:03:49.9]} 12... e5 {[%clk 0:04:31]}
13. Nxe5 {[%clk 0:03:47.2]} 13... Qxc7 {[%clk 0:04:28.3]} 14. Nxc6 {[%clk
0:03:22.5]} 14... Qxc6 {[%clk 0:04:24.3]} 15. Bxb8 {[%clk 0:03:12.2]} 15... Bg4
{[%clk 0:04:23.2]} 16. f3 {[%clk 0:03:11.2]} 16... Rxb8 {[%clk 0:04:19.6]} 17.
fxg4 {[%clk 0:03:10.1]} 17... c4 {[%clk 0:04:13.8]} 18. Kh1 {[%clk 0:02:50.8]}
18... Nxe4 {[%clk 0:04:09.3]} 19. Qf3 {[%clk 0:02:27.2]} 19... Nf6 {[%clk
0:03:55.9]} 20. g5 {[%clk 0:02:18]} 20... Qxf3 {[%clk 0:03:49.8]} 21. Bxf3
{[%clk 0:02:15.9]} 21... Nd7 {[%clk 0:03:49]} 22. Bd5 {[%clk 0:02:12.9]} 22...
Ne5 {[%clk 0:03:42.1]} 23. Rae1 {[%clk 0:02:09]} 23... Bd6 {[%clk 0:03:41.2]}
24. Rf5 {[%clk 0:01:45.6]} 24... Nc6 {[%clk 0:03:19.2]} 25. Rxf7 {[%clk
0:01:36.2]} 25... Kh8 {[%clk 0:03:10.4]} 26. Rxb7 {[%clk 0:01:30.9]} 26... Bb4
{[%clk 0:02:57.7]} 27. Bxc6 {[%clk 0:01:25.2]} 1-0

[Event "Live Chess"]
[Site "Chess.com"]
[Date "2023.05.20"]
[Round "-"]
[White "raminguy"]
[Black "JoshMcK"]
[Result "1-0"]
[WhiteElo "1965"]
[BlackElo "1577"]
[TimeControl "300"]
[EndTime "13:41:18 PDT"]
[Termination "raminguy won by resignation"]

1. d4 {[%clk 0:04:58]} 1... Nf6 {[%clk 0:04:58.3]} 2. Nc3 {[%clk 0:04:57.6]}
2... g6 {[%clk 0:04:57.8]} 3. Bf4 {[%clk 0:04:56.8]} 3... Bg7 {[%clk 0:04:57]}
4. e4 {[%clk 0:04:56.2]} 4... d6 {[%clk 0:04:55.5]} 5. Qd2 {[%clk 0:04:55.6]}
5... O-O {[%clk 0:04:54.5]} 6. O-O-O {[%clk 0:04:54.8]} 6... Nbd7 {[%clk
0:04:52.8]} 7. Bh6 {[%clk 0:04:53.5]} 7... Bxh6 {[%clk 0:04:51.4]} 8. Qxh6
{[%clk 0:04:51.5]} 8... Ng4 {[%clk 0:04:51]} 9. Qf4 {[%clk 0:04:43.1]} 9... Ngf6
{[%clk 0:04:37]} 10. h3 {[%clk 0:04:40.5]} 10... Qe8 {[%clk 0:04:32.1]} 11. Qh6
{[%clk 0:04:35.5]} 11... e5 {[%clk 0:04:30.3]} 12. Nf3 {[%clk 0:04:34.6]} 12...
exd4 {[%clk 0:04:27.9]} 13. Rxd4 {[%clk 0:04:31.4]} 13... Ne5 {[%clk 0:04:23.2]}
14. Ng5 {[%clk 0:04:29.6]} 14... Nc6 {[%clk 0:04:19.2]} 15. Rd1 {[%clk
0:04:24.5]} 15... Ne5 {[%clk 0:04:02.5]} 16. f4 {[%clk 0:04:20.9]} 16... Nc6
{[%clk 0:03:58.8]} 17. Re1 {[%clk 0:04:18.1]} 17... b6 {[%clk 0:03:46.8]} 18.
Nd5 {[%clk 0:04:16.6]} 1-0